bitfinex-derivatives/quotes_SOLF0:USTF0_20250428
["timestamp","ask_amount","ask_price","bid_price","bid_amount"]
[1745867054536,37.95525638,147.89,147.77,37.95525638]
[1745867054736,6.0308,147.88,147.78,6.48516685]
[1745867054936,6.0308,147.88,147.76,37.95525638]
[1745867055131,6.0308,147.88,147.77,6.48636146]
[1745867055329,6.761,147.87,147.82,6.7629]
[1745867055532,6.0308,147.88,147.79,37.95525638]
[1745867056538,6.0308,147.88,147.81,6.7636]
[1745867056834,6.7618,147.86,147.81,6.7636]
[1745867057036,4.1171,147.93,147.83,37.95525638]
[1745867057230,4.1171,147.93,147.86,37.95525638]
[1745867057437,6.7593,147.91,147.86,37.95525638]
[1745867057637,6.7593,147.91,147.87,6.7609]
[1745867058740,6.7596,147.9,147.86,6.7613]
[1745867059841,6.7596,147.9,147.83,37.95525638]
[1745867059842,6.7601,147.89,147.85,6.7618]
[1745867060036,37.95525638,147.92,147.77,37.95525638]
[1745867060243,37.95525638,147.89,147.78,6.47612222]
[1745867060440,37.95525638,147.89,147.77,37.95525638]
[1745867060641,6.7622,147.85,147.81,6.7636]
[1745867061043,37.95525638,147.89,147.77,37.95525638]
[1745867061237,37.95525638,147.89,147.8,6.764]
[1745867061540,4.1171,147.93,147.8,6.764]
[1745867061739,4.1171,147.93,147.77,37.95525638]
[1745867061943,37.95525638,147.92,147.82,6.763]
[1745867062140,37.95525638,147.92,147.8,37.95525638]
[1745867062540,6.7612,147.87,147.83,6.7626]
[1745867062843,37.95525638,147.92,147.77,37.95525638]
[1745867063043,37.95525638,147.92,147.82,6.7628]
[1745867063343,37.95525638,147.92,147.8,37.95525638]
[1745867063746,37.95525638,147.92,147.82,6.7629]
[1745867063949,1.17720684,147.94,147.83,37.95525638]
[1745867064246,6.7621,147.85,147.79,6.7642]
[1745867064442,6.7621,147.85,147.8,6.49226599]
[1745867064642,37.95525638,147.9,147.78,37.95525638]
[1745867064836,5.17066702,147.93,147.79,6.50095198]
[1745867065041,5.17066702,147.93,147.77,37.95525638]
[1745867065042,41.94875638,147.93,147.81,37.95525638]
[1745867065340,6.7608,147.88,147.83,6.7625]
[1745867065535,41.94875638,147.93,147.77,37.95525638]
[1745867065735,3.9935,147.93,147.78,6.51163107]
[1745867065939,3.9935,147.93,147.82,37.95525638]
[1745867066140,6.7599,147.9,147.86,6.761]
[1745867066645,3.9935,147.93,147.81,37.95525638]
[1745867066841,3.9935,147.93,147.82,6.52167555]
[1745867067147,3.9935,147.93,147.84,37.95525638]
[1745867067348,6.7596,147.9,147.86,6.7612]
[1745867069041,6.7596,147.9,147.82,37.95525638]
[1745867069042,6.7601,147.89,147.82,37.95525638]
[1745867069243,3.9935,147.93,147.83,6.52811217]
[1745867069443,3.9935,147.93,147.84,6.52811217]
[1745867069643,6.7601,147.89,147.85,6.52811217]
[1745867069845,3.9935,147.93,147.82,37.95525638]
[1745867070148,6.7599,147.9,147.86,6.7613]
[1745867070349,3.9935,147.93,147.82,37.95525638]
[1745867070548,3.9935,147.93,147.83,6.53621967]
[1745867070745,6.7594,147.91,147.87,6.7609]
[1745867071047,3.9935,147.93,147.82,37.95525638]
[1745867071247,3.9935,147.93,147.83,6.53620297]
[1745867071443,3.9935,147.93,147.85,6.7619]
[1745867071747,3.9935,147.93,147.86,6.53620297]
[1745867071947,3.9935,147.93,147.86,6.7611]
[1745867072142,3.9935,147.93,147.82,37.95525638]
[1745867072345,3.9935,147.93,147.83,6.53831844]
[1745867072543,3.9935,147.93,147.84,6.53831844]
[1745867072744,3.9935,147.93,147.85,6.53831844]
[1745867072939,3.9935,147.93,147.86,6.53831844]
[1745867073140,6.7597,147.9,147.85,6.7617]
[1745867073343,6.7597,147.9,147.86,6.54159197]
[1745867073546,3.9935,147.93,147.85,6.7617]
[1745867073745,6.7603,147.89,147.86,6.54360738]
[1745867074050,37.95525638,147.92,147.78,37.95525638]
[1745867074245,37.95525638,147.89,147.79,6.54690772]
[1745867074444,37.95525638,147.86,147.8,6.54690772]
[1745867074649,1.9324,147.85,147.81,6.54690772]
[1745867074849,2.0804,147.88,147.82,44.5021641]
[1745867075149,2.0804,147.88,147.83,13.30930772]
[1745867075353,2.0804,147.88,147.84,6.54690772]
[1745867075551,2.0804,147.88,147.85,6.54690772]
[1745867075744,2.0804,147.88,147.79,37.95525638]
[1745867075950,1.9324,147.91,147.85,37.95525638]
[1745867076144,1.9418,147.93,147.86,6.55582844]
[1745867076346,1.9418,147.93,147.87,6.55582844]
[1745867076549,1.9418,147.93,147.88,6.55582844]
[1745867076745,1.9418,147.93,147.89,6.7597]
[1745867076950,1.9418,147.93,147.85,37.95525638]
[1745867077152,1.9418,147.93,147.89,6.76]
[1745867077351,1.9418,147.93,147.9,6.55285779]
[1745867077652,1.9324,147.96,147.91,6.5551376]
[1745867077953,1.9324,147.96,147.85,37.95525638]
[1745867078148,1.9324,147.96,147.86,6.55485617]
[1745867078348,6.7574,147.95,147.9,6.7592]
[1745867078549,6.7574,147.95,147.91,6.55485617]
[1745867078751,1.9324,147.96,147.91,6.55485617]
[1745867078951,1.9324,147.96,147.85,37.95525638]
[1745867079151,1.9324,147.96,147.86,6.55544474]
[1745867079452,1.9324,147.96,147.87,6.55544474]
[1745867079651,8.6896,147.96,147.91,6.759]
[1745867079852,1.9324,147.96,147.85,37.95525638]
[1745867080054,39.88765638,147.96,147.86,6.55739104]
[1745867080253,39.88765638,147.96,147.87,6.55739104]
[1745867080452,39.88765638,147.96,147.88,6.55739104]
[1745867080753,39.88765638,147.96,147.89,6.55739104]
[1745867081051,1.9324,147.96,147.9,6.55739104]
[1745867081253,1.9324,147.96,147.85,37.95525638]
[1745867081555,1.9324,147.96,147.9,6.7591]
[1745867081948,1.9324,147.96,147.92,6.7583]
[1745867082352,1.9324,147.96,147.88,37.95525638]
[1745867082653,1.9324,147.96,147.89,6.56595376]
[1745867082853,1.9324,147.96,147.9,6.56595376]
[1745867083156,6.758,147.94,147.91,6.56638445]
[1745867083455,1.9324,147.96,147.91,6.56638445]
[1745867083655,6.7579,147.94,147.91,6.56638445]
[1745867083856,1.9324,147.96,147.91,6.56638445]
[1745867084057,1.9324,147.96,147.84,37.95525638]
[1745867084251,6.7583,147.93,147.84,37.95525638]
[1745867084652,1.9324,147.96,147.84,37.95525638]
[1745867085155,39.88765638,147.96,147.85,6.57722896]
[1745867085352,39.88765638,147.96,147.84,37.95525638]
[1745867085550,39.88765638,147.96,147.85,6.57738564]
[1745867085751,6.7584,147.93,147.88,6.7605]
[1745867086252,6.7584,147.93,147.89,13.33728564]
[1745867086450,39.88765638,147.96,147.84,37.95525638]
[1745867086648,39.88765638,147.96,147.9,6.58513454]
[1745867086854,6.7585,147.93,147.91,6.58510473]
[1745867087157,39.88765638,147.96,147.91,6.58510473]
[1745867087355,6.7587,147.92,147.84,37.95525638]
[1745867087658,39.88765638,147.96,147.85,6.59386056]
[1745867087855,6.7594,147.91,147.87,6.7606]
[1745867088055,39.88765638,147.96,147.85,6.59386056]
[1745867088358,37.95525638,147.93,147.86,6.59386056]
[1745867088559,37.95525638,147.93,147.87,6.59386056]
[1745867088760,37.95525638,147.93,147.88,6.59386056]
[1745867089059,6.7596,147.9,147.89,6.59386056]
[1745867090753,363.0,147.98,147.89,6.59386056]
[1745867090962,37.95525638,147.98,147.9,6.59386056]
[1745867091164,43.76345638,147.98,147.91,6.59386056]
[1745867091462,37.95525638,147.95,147.92,6.59386056]
[1745867091659,6.7586,147.93,147.83,37.95525638]
[1745867091855,6.7586,147.93,147.84,6.60852511]
[1745867092061,5.8082,147.98,147.85,6.60852511]
[1745867092262,43.76345638,147.98,147.86,44.56378149]
[1745867092561,6.7574,147.95,147.9,6.7592]
[1745867092863,37.95525638,148.01,147.91,6.60693792]
[1745867093059,41.90295638,148.01,147.92,6.60693792]
[1745867093261,6.7567,147.97,147.93,13.36483792]
[1745867093462,6.7567,147.97,147.94,6.60693792]
[1745867093761,6.7567,147.97,147.95,6.60693792]
[1745867093963,6.7567,147.97,147.96,6.60693792]
[1745867094164,6.7577,147.95,147.86,37.95525638]
[1745867094464,6.7577,147.95,147.87,6.60632355]
[1745867094668,1.17643082,148.03,147.89,37.95525638]
[1745867094871,41.89275638,148.02,147.9,6.60632355]
[1745867095163,6.7562,147.98,147.91,6.60632355]
[1745867095365,41.89275638,148.02,147.92,6.60632355]
[1745867095663,41.89275638,148.02,147.93,13.36422355]
[1745867095862,6.7567,147.97,147.94,6.60632355]
[1745867096062,41.89275638,148.02,147.95,6.60632355]
[1745867096254,41.89275638,148.02,147.96,6.60108136]
[1745867096455,41.89275638,148.02,147.89,37.95525638]
[1745867096657,37.95525638,147.93,147.79,37.95525638]
[1745867096858,37.95525638,147.9,147.79,37.95525638]
[1745867097268,37.95525638,147.9,147.81,6.7636]
[1745867097564,37.95525638,147.86,147.73,487.7571272]
[1745867097763,37.95525638,147.86,147.74,37.95525638]
[1745867098769,37.95525638,147.89,147.78,6.765]
[1745867099170,37.95525638,147.89,147.74,37.95525638]
[1745867099373,37.95525638,147.83,147.69,64.06584564]
[1745867099573,2.0864,147.82,147.69,37.95525638]
[1745867099766,4.188,147.82,147.69,37.95525638]
[1745867099971,4.188,147.82,147.65,486.68]
[1745867099972,6.765,147.79,147.73,6.7669]
[1745867100473,37.95525638,147.87,147.75,37.95525638]
[1745867100675,4.1878,147.9,147.75,37.95525638]
[1745867100867,6.7637,147.81,147.74,6.7665]
[1745867101068,37.95525638,147.85,147.74,6.7665]
[1745867101371,7.93764543,147.89,147.81,6.7635]
[1745867101669,4.1878,147.9,147.77,37.95525638]
[1745867101877,4.1878,147.9,147.8,37.95525638]
[1745867102675,6.7604,147.89,147.8,37.95525638]
[1745867103065,42.14305638,147.9,147.68,378.54248]
[1745867103264,42.14305638,147.9,147.79,6.7642]
[1745867103464,42.14305638,147.9,147.77,37.95525638]
[1745867103681,6.761,147.87,147.8,6.7638]
[1745867103968,42.14305638,147.9,147.8,6.7638]
[1745867104174,42.14305638,147.9,147.75,37.95525638]
[1745867104375,37.95525638,147.84,147.68,378.54248]
[1745867104571,37.95525638,147.84,147.71,37.95525638]
[1745867104770,6.7634,147.82,147.68,378.54248]
[1745867104972,37.95525638,147.81,147.7,37.95525638]
[1745867105775,37.95525638,147.81,147.68,18.54248]
[1745867105975,37.95525638,147.81,147.7,37.95525638]
[1745867106878,44.71935638,147.81,147.7,37.95525638]
[1745867107079,3.9489,147.82,147.73,37.95525638]
[1745867107378,10.7122,147.82,147.73,37.95525638]
[1745867107678,3.9489,147.82,147.73,37.95525638]
[1745867107879,37.95525638,147.81,147.7,37.95525638]
[1745867108275,37.95525638,147.78,147.68,18.54248]
[1745867108474,6.7656,147.77,147.72,6.7674]
[1745867108672,37.95525638,147.81,147.73,6.43938415]
[1745867108877,3.9489,147.82,147.74,6.43854307]
[1745867109074,6.7647,147.79,147.7,37.95525638]
[1745867109275,6.7647,147.79,147.71,6.43630985]
[1745867109570,6.7647,147.79,147.72,6.43630985]
[1745867109774,3.9489,147.82,147.73,6.43630985]
[1745867110079,37.95525638,147.81,147.74,6.43630985]
[1745867110279,37.95525638,147.81,147.7,37.95525638]
[1745867110579,3.9489,147.82,147.71,6.43184189]
[1745867110776,3.9489,147.82,147.72,6.43184189]
[1745867110979,37.95525638,147.8,147.68,18.54248]
[1745867111279,6.7663,147.76,147.71,6.768]
[1745867111475,37.95525638,147.77,147.68,18.54248]
[1745867111675,37.95525638,147.77,147.69,6.42931159]
[1745867111878,37.95525638,147.77,147.7,6.42931159]
[1745867112080,37.95525638,147.77,147.68,18.54248]
[1745867112279,37.95525638,147.74,147.69,6.42526628]
[1745867112478,6.7682,147.72,147.68,18.54248]
[1745867112682,2.0463,147.73,147.68,18.54248]
[1745867113181,2.0463,147.73,147.68,12.14748]
[1745867113182,6.7692,147.69,147.68,12.14748]
[1745867113480,37.95525638,147.71,147.59,37.95525638]
[1745867113680,6.7704,147.67,147.6,6.42486837]
[1745867113880,6.7704,147.67,147.61,6.42486837]
[1745867114083,6.7704,147.67,147.62,13.19696837]
[1745867114282,6.7704,147.67,147.62,6.7721]
[1745867114582,6.7704,147.67,147.63,6.7716]
[1745867115484,37.95525638,147.71,147.63,6.7716]
[1745867115672,37.95525638,147.71,147.64,6.7713]
[1745867115878,37.95525638,147.71,147.59,37.95525638]
[1745867116080,37.95525638,147.71,147.6,6.40807661]
[1745867116284,37.95525638,147.71,147.63,6.7716]
[1745867116584,37.95525638,147.71,147.59,37.95525638]
[1745867116780,6.7693,147.69,147.65,6.7707]
[1745867117181,37.95525638,147.71,147.59,37.95525638]
[1745867117381,6.7703,147.67,147.6,6.39528717]
[1745867117576,37.95525638,147.62,147.5,37.95525638]
[1745867117778,44.72805638,147.62,147.55,6.7756]
[1745867117985,37.95525638,147.65,147.53,37.95525638]
[1745867118177,37.95525638,147.65,147.54,6.40489334]
[1745867118382,6.7724,147.62,147.55,6.7753]
[1745867118682,37.95525638,147.65,147.55,6.7753]
[1745867118887,2.0397,147.66,147.57,6.7746]
[1745867119086,2.0397,147.66,147.56,37.95525638]
[1745867119583,2.0397,147.66,147.57,6.7746]
[1745867119789,2.0397,147.66,147.56,37.95525638]
[1745867120285,6.7728,147.62,147.56,37.95525638]
[1745867120487,2.0397,147.66,147.56,37.95525638]
[1745867120688,6.7711,147.65,147.61,6.7728]
[1745867121889,6.7716,147.64,147.6,6.7732]
[1745867122188,2.0397,147.66,147.56,37.95525638]
[1745867122483,6.7729,147.61,147.56,6.7751]
[1745867122685,37.95525638,147.65,147.56,6.7751]
[1745867122881,37.95525638,147.65,147.54,37.95525638]
[1745867123388,37.95525638,147.65,147.52,4.1314]
[1745867123689,37.95525638,147.62,147.52,4.1314]
[1745867123886,6.775,147.57,147.52,4.1314]
[1745867124092,37.95525638,147.62,147.52,4.1314]
[1745867124292,6.7747,147.58,147.53,6.7762]
[1745867125290,6.7747,147.58,147.54,6.776]
[1745867126092,6.7752,147.56,147.52,4.1314]
[1745867126292,37.95525638,147.58,147.47,37.95525638]
[1745867126495,37.95525638,147.6,147.47,37.95525638]
[1745867126688,6.7744,147.58,147.53,6.7765]
[1745867126893,37.95525638,147.63,147.51,1.9907]
[1745867127292,37.95525638,147.63,147.53,37.95525638]
[1745867127685,6.7736,147.6,147.55,6.7753]
[1745867127884,37.95525638,147.63,147.53,37.95525638]
[1745867128194,487.4,147.65,147.56,6.775]
[1745867128383,487.4,147.65,147.53,37.95525638]
[1745867128796,6.7733,147.61,147.57,6.7746]
[1745867128996,487.4,147.65,147.57,6.7746]
[1745867129197,487.4,147.65,147.53,37.95525638]
[1745867130297,6.7731,147.61,147.57,6.7744]
[1745867130495,6.7731,147.61,147.53,37.95525638]
[1745867130896,6.7731,147.61,147.57,6.7744]
[1745867131397,487.4,147.65,147.56,37.95525638]
[1745867131594,2.0397,147.66,147.59,37.95525638]
[1745867131800,489.6298,147.72,147.59,37.95525638]
[1745867132096,37.95525638,147.78,147.65,37.95525638]
[1745867132297,4.1433,147.76,147.65,37.95525638]
[1745867132601,6.767,147.74,147.7,6.7687]
[1745867132800,4.1433,147.76,147.65,37.95525638]
[1745867133003,37.95525638,147.75,147.64,4.0049]
[1745867133500,6.768,147.72,147.67,6.7697]
[1745867133700,37.95525638,147.75,147.64,4.0049]
[1745867134105,37.95525638,147.75,147.67,6.77]
[1745867134300,37.95525638,147.75,147.64,4.0049]
[1745867135101,6.7692,147.7,147.64,10.7763]
[1745867135302,37.95525638,147.75,147.64,41.96015638]
[1745867135608,4.1433,147.76,147.64,41.96015638]
[1745867135806,6.768,147.72,147.67,6.7701]
[1745867136107,4.1433,147.76,147.67,6.7701]
[1745867136403,6.7683,147.71,147.66,6.7704]
[1745867137603,37.95525638,147.74,147.61,37.95525638]
[1745867137805,37.95525638,147.71,147.6,37.95525638]
[1745867138008,37.95525638,147.71,147.57,4.1253]
[1745867138201,37.95525638,147.71,147.63,6.7717]
[1745867138707,6.7701,147.68,147.63,6.7717]
[1745867139003,37.95525638,147.71,147.62,6.7724]
[1745867139400,37.95525638,147.68,147.61,6.7727]
[1745867139703,6.7709,147.66,147.58,37.95525638]
[1745867139900,1.9906,147.67,147.59,6.38522246]
[1745867140100,1.9906,147.67,147.6,6.39388239]
[1745867140303,1.9906,147.67,147.62,6.7722]
[1745867140500,2.1072,147.69,147.61,37.95525638]
[1745867140697,2.1072,147.69,147.62,6.39271295]
[1745867140902,6.7698,147.68,147.61,37.95525638]
[1745867141102,1.9196,147.7,147.62,6.39268312]
[1745867141302,6.7695,147.69,147.65,6.771]
[1745867141503,1.9196,147.7,147.61,37.95525638]
[1745867141705,1.9196,147.7,147.62,6.40248522]
[1745867141906,6.771,147.66,147.63,6.40248522]
[1745867142103,6.771,147.66,147.62,6.7721]
[1745867142504,37.95525638,147.68,147.58,37.95525638]
[1745867142704,2.1211,147.67,147.59,6.4110201]
[1745867142906,6.7709,147.66,147.62,6.7723]
[1745867143405,6.7711,147.65,147.61,6.7727]
[1745867144006,2.1211,147.67,147.58,37.95525638]
[1745867144219,1.9196,147.7,147.59,6.41451265]
[1745867144512,8.6885,147.7,147.62,37.95525638]
[1745867144706,8.6885,147.7,147.63,6.41451265]
[1745867145012,1.9196,147.7,147.62,37.95525638]
[1745867145311,1.9196,147.7,147.65,6.7706]
[1745867145312,6.7692,147.69,147.65,6.7706]
[1745867145810,39.87485638,147.7,147.59,37.95525638]
[1745867146111,39.87485638,147.7,147.6,6.41249879]
[1745867146305,39.87485638,147.7,147.61,6.41249879]
[1745867146507,6.7704,147.67,147.63,6.7717]
[1745867146704,3.9758,147.72,147.64,6.41249879]
[1745867147007,363.0,147.81,147.7,37.95525638]
[1745867147209,6.227,147.8,147.71,6.41249879]
[1745867147407,6.227,147.8,147.72,6.41249879]
[1745867147609,12.9912,147.8,147.74,6.7669]
[1745867147908,6.227,147.8,147.75,6.40887178]
[1745867148110,6.227,147.8,147.76,6.40887178]
[1745867148311,4.1221,147.8,147.73,37.95525638]
[1745867148506,4.1221,147.8,147.74,6.41086135]
[1745867148711,4.1221,147.8,147.75,6.41086135]
[1745867149008,4.1221,147.8,147.76,6.41086135]
[1745867149208,4.1221,147.8,147.77,6.41592246]
[1745867149407,2.0398,147.84,147.78,6.41268386]
[1745867149611,2.0398,147.84,147.79,6.41108221]
[1745867149813,2.0398,147.84,147.79,6.7646]
[1745867150005,2.0398,147.84,147.76,37.95525638]
[1745867150203,2.0398,147.84,147.77,6.410404]
[1745867150409,6.7633,147.82,147.78,6.410404]
[1745867150718,2.0398,147.84,147.79,6.410404]
[1745867150907,6.7631,147.83,147.77,6.7651]
[1745867151111,6.7631,147.83,147.78,6.40996875]
[1745867151310,6.7631,147.83,147.77,6.7651]
[1745867151511,6.7631,147.83,147.78,6.40794918]
[1745867151712,6.7631,147.83,147.77,6.7651]
[1745867152011,6.7631,147.83,147.78,6.40789376]
[1745867152211,6.7634,147.82,147.77,6.7651]
[1745867152407,2.0398,147.84,147.78,13.17141676]
[1745867152617,2.0398,147.84,147.78,6.7651]
[1745867152817,2.0398,147.84,147.74,2.1176]
[1745867153016,2.0398,147.84,147.75,6.40594455]
[1745867153217,2.0398,147.84,147.76,6.40594455]
[1745867153413,2.0398,147.84,147.77,6.40594455]
[1745867153615,2.0398,147.84,147.78,6.40430226]
[1745867153817,6.7629,147.83,147.77,6.7651]
[1745867154018,37.95525638,147.89,147.78,6.40430226]
[1745867154214,4.2121,147.88,147.79,6.40430226]
[1745867154423,4.2121,147.88,147.8,6.40430226]
[1745867154616,4.2121,147.88,147.81,6.40430226]
[1745867154816,10.9727,147.88,147.82,6.7629]
[1745867155121,4.2121,147.88,147.76,37.95525638]
[1745867155418,6.7615,147.86,147.81,6.7634]
[1745867155618,4.2121,147.88,147.76,37.95525638]
[1745867155819,4.2121,147.88,147.77,6.38995881]
[1745867156122,6.7614,147.87,147.82,6.7629]
[1745867156523,6.7614,147.87,147.76,37.95525638]
[1745867156722,6.7614,147.87,147.82,6.7628]
[1745867156921,6.7614,147.87,147.76,37.95525638]
[1745867157120,6.7614,147.87,147.77,6.38442734]
[1745867157321,6.7614,147.86,147.83,6.7627]
[1745867157620,6.7614,147.86,147.76,37.95525638]
[1745867157817,6.7614,147.86,147.82,6.7629]
[1745867158018,6.7614,147.86,147.76,37.95525638]
[1745867158321,6.7614,147.86,147.82,6.763]
[1745867158521,6.7614,147.86,147.76,37.95525638]
[1745867158722,6.7614,147.86,147.77,6.37380317]
[1745867158922,6.7614,147.86,147.78,6.37380317]
[1745867159117,6.7614,147.86,147.79,6.37380317]
[1745867159314,4.2121,147.88,147.81,6.7633]
[1745867159724,6.7621,147.85,147.81,6.7633]
[1745867160120,4.2121,147.88,147.81,6.7633]
[1745867160321,6.7626,147.84,147.76,37.95525638]
[1745867160616,6.7626,147.84,147.77,6.37146819]
[1745867160820,6.7626,147.84,147.81,6.7635]
[1745867161020,6.7626,147.84,147.76,37.95525638]
[1745867161224,37.95525638,147.86,147.79,6.7643]
[1745867162026,6.7624,147.84,147.79,6.7643]
[1745867162228,37.95525638,147.86,147.74,40.07285638]
[1745867162426,37.95525638,147.86,147.75,6.36995737]
[1745867162630,6.7631,147.83,147.74,40.07285638]
[1745867162926,37.95525638,147.86,147.75,6.36903926]
[1745867163131,37.95525638,147.86,147.74,40.07285638]
[1745867163334,37.95525638,147.86,147.78,6.7648]
[1745867163632,6.764,147.81,147.74,40.07285638]
[1745867164026,1.9512,147.83,147.71,40.06275638]
[1745867164334,6.7658,147.77,147.67,40.01335638]
[1745867164628,6.7653,147.78,147.68,6.3720404]
[1745867164828,6.7653,147.78,147.7,37.95525638]
[1745867165028,4.0648,147.8,147.7,37.95525638]
[1745867165224,4.0648,147.8,147.71,6.37204578]
[1745867165429,4.0648,147.8,147.7,37.95525638]
[1745867165629,4.0648,147.8,147.71,6.37144995]
[1745867165829,6.7649,147.79,147.75,6.7663]
[1745867166029,4.0648,147.8,147.7,37.95525638]
[1745867166333,4.0648,147.8,147.74,6.7668]
[1745867166726,4.0648,147.8,147.67,40.01335638]
[1745867167030,6.7672,147.74,147.7,6.7684]
[1745867167229,37.95525638,147.78,147.67,2.0581]
[1745867167433,6.7669,147.75,147.7,6.7686]
[1745867167621,37.95525638,147.78,147.7,6.7686]
[1745867167825,37.95525638,147.78,147.67,2.0581]
[1745867168232,4.0648,147.8,147.69,37.95525638]
[1745867168427,4.0648,147.8,147.77,6.7655]
[1745867168936,37.95525638,147.78,147.67,2.0581]
[1745867169138,6.7673,147.74,147.68,6.37703655]
[1745867169432,1.988,147.77,147.69,6.37703655]
[1745867169632,6.7674,147.73,147.69,6.7689]
[1745867169835,37.95525638,147.76,147.64,37.95525638]
[1745867170040,37.95525638,147.76,147.65,6.38640027]
[1745867170334,37.95525638,147.76,147.64,37.95525638]
[1745867170335,37.95525638,147.76,147.66,6.38640027]
[1745867170530,37.95525638,147.76,147.64,37.95525638]
[1745867170732,37.95525638,147.76,147.65,6.39062321]
[1745867170931,37.95525638,147.76,147.64,37.95525638]
[1745867171234,37.95525638,147.76,147.65,13.16367472]
[1745867171433,37.95525638,147.76,147.64,37.95525638]
[1745867171633,37.95525638,147.73,147.65,6.39725932]
[1745867171829,2.0299,147.72,147.61,37.95525638]
[1745867172030,6.77,147.68,147.63,6.7715]
[1745867172234,6.77,147.68,147.64,6.40335137]
[1745867172434,6.77,147.68,147.61,37.95525638]
[1745867172630,6.77,147.68,147.62,6.40399939]
[1745867172831,6.77,147.68,147.64,6.7714]
[1745867173233,6.7706,147.66,147.61,6.7725]
[1745867173425,6.7706,147.66,147.62,6.40767723]
[1745867173625,37.95525638,147.7,147.63,6.40767723]
[1745867173829,6.7701,147.67,147.59,4.033]
[1745867174129,6.7701,147.67,147.6,6.4081956]
[1745867174432,2.0299,147.72,147.61,6.4081956]
[1745867174625,4.0537,147.76,147.69,37.95525638]
[1745867175032,2.1217,147.76,147.7,6.40311311]
[1745867175232,2.1217,147.76,147.69,37.95525638]
[1745867175430,2.1217,147.76,147.7,6.40626457]
[1745867175631,2.1217,147.76,147.69,44.72405638]
[1745867175831,2.1217,147.76,147.7,6.40765273]
[1745867176027,2.1217,147.76,147.69,44.72435638]
[1745867176233,2.1217,147.76,147.7,6.41090145]
[1745867176429,2.1217,147.76,147.66,37.95525638]
[1745867176736,2.1217,147.76,147.72,6.7678]
[1745867176935,2.1217,147.76,147.62,360.0]
[1745867177131,6.7675,147.73,147.63,6.41371106]
[1745867177327,1.9737,147.75,147.64,44.36896744]
[1745867177529,1.9737,147.75,147.65,6.41371106]
[1745867177842,8.7403,147.75,147.67,37.95525638]
[1745867178139,1.9737,147.75,147.68,6.41371106]
[1745867178341,2.1217,147.76,147.69,6.41371106]
[1745867178640,2.1217,147.76,147.7,6.41371106]
[1745867178840,2.1217,147.76,147.67,37.95525638]
[1745867179027,2.1217,147.76,147.68,6.41292831]
[1745867179230,2.0786,147.77,147.7,37.95525638]
[1745867179436,2.0786,147.77,147.71,6.41292831]
[1745867179634,2.0786,147.77,147.7,37.95525638]
[1745867179834,2.0786,147.77,147.71,6.41201456]
[1745867180037,2.0786,147.77,147.67,37.95525638]
[1745867180239,2.0786,147.77,147.68,6.41242202]
[1745867180439,6.7665,147.75,147.71,6.7679]
[1745867180739,2.0786,147.77,147.67,37.95525638]
[1745867180941,6.7665,147.75,147.68,6.41319066]
[1745867181140,2.0786,147.77,147.69,6.41319066]
[1745867181336,2.0786,147.77,147.7,6.41319066]
[1745867181537,2.0786,147.77,147.71,6.41319066]
[1745867181740,2.0786,147.77,147.72,6.41319066]
[1745867181939,2.0786,147.77,147.67,37.95525638]
[1745867182137,6.7665,147.75,147.68,6.41374616]
[1745867182338,2.0786,147.77,147.69,6.41374616]
[1745867182532,6.7665,147.75,147.72,6.7677]
[1745867182740,2.0691,147.81,147.73,6.41397632]
[1745867182941,2.1202,147.8,147.7,37.95525638]
[1745867183241,6.7655,147.77,147.73,6.7671]
[1745867183935,2.1202,147.8,147.67,37.95525638]
[1745867184148,37.95525638,147.79,147.68,6.41562106]
[1745867184443,6.7667,147.75,147.69,6.41562106]
[1745867184639,6.7667,147.75,147.7,6.41562106]
[1745867184835,6.7667,147.75,147.71,6.41562106]
[1745867185036,6.7667,147.75,147.72,6.41562106]
[1745867185339,37.95525638,147.79,147.67,37.95525638]
[1745867185539,23.26038566,147.78,147.68,6.42239789]
[1745867185842,6.7672,147.74,147.69,6.42239789]
[1745867186040,6.7672,147.74,147.7,6.42239789]
[1745867186241,6.7672,147.74,147.71,6.42239789]
[1745867186440,6.7672,147.74,147.66,2.0642]
[1745867186641,23.26038566,147.78,147.67,6.42609991]
[1745867186943,23.26038566,147.78,147.68,6.42609991]
[1745867187144,23.26038566,147.78,147.69,6.42609991]